Cogmind - Beta 13 @@@ ROGUE MODE // 2024.07.17 @ 02:05:54 Player: t0f Result: Destroyed by D-53 Grenadier with Mini Grenade Launcher Performance ------------- Evolutions (0) 0 Regions Visited (2) 400 Robots Destroyed (19) 95 Value Destroyed (348) 348 Prototype IDs (0) 0 Alien Tech Used (0) 0 Bonus (0) 0 TOTAL SCORE: 843 Bonus ------- None Cogmind --------- Core Integrity 0/250 Matter 177/300 Energy 123/125 System Corruption 10% Temperature Cool (0) Movement Rolling (80) Location -10/Mines Parts ------- > --- POWER (1) -------- Light Ion Engine > --- PROPULSION (2) --- Wheel > --- UTILITY (2) ------ (None) > --- WEAPON (2) ------- Small Laser > --- INVENTORY (5) ---- Light Ion Engine Mining Laser Mining Laser Peak State ------------ > --- POWER ------------ Ion Engine > --- PROPULSION ------- Wheel Wheel > --- UTILITY ---------- Visual Processing Unit Sensor Array > --- WEAPON ----------- Grenade Launcher Mining Laser > --- INVENTORY -------- Light Ion Engine Aluminum Leg Aluminum Leg Medium Laser Small Laser [Rating: 8] Favorites ----------- Power Ion Engine Engine Ion Engine Propulsion Wheel Leg Aluminum Leg Wheel Wheel Utility Visual Processing Unit Device Sensor Array Processor Visual Processing Unit Weapon Grenade Launcher Energy Gun Medium Laser Launcher Grenade Launcher Special Weapon Mining Laser Build | -11 -10 -10 ------- Run | Yrd Mat Min Slots Evolved . | . . . Power . | . . . Propulsion . | . . . Utility . | . . . Weapon . | . . . Parts Attached 25 | 5 10 10 Power 3 | 1 1 1 Engine 3 | 1 1 1 Core . | . . . Reactor . | . . . Propulsion 7 | 2 3 2 Treads . | . . . Leg 2 | . 2 . Wheel 5 | 2 1 2 Hover . | . . . Flight . | . . . Utility 4 | . 4 . Device 3 | . 3 . Storage . | . . . Processor 1 | . 1 . Hackware . | . . . Protection . | . . . Artifact . | . . . Weapon 11 | 2 2 7 Energy Gun 4 | 2 . 2 Energy Cannon . | . . . Ballistic Gun . | . . . Ballistic Cannon . | . . . Launcher 3 | . 1 2 Special Weapon 4 | . 1 3 Impact Weapon . | . . . Slashing Weapon . | . . . Piercing Weapon . | . . . Special Melee Weapon . | . . . Unidentified Prototypes . | . . . Parts Lost 9 | . 1 8 Power 1 | . . 1 Propulsion 3 | . . 3 Utility 2 | . . 2 Weapon 3 | . 1 2 Highest Loss Streak 7 | . 1 7 To Critical Strikes . | . . . Average Slot Usage (%) 87 | . 89 86 Engine 13 | . 14 12 Leg 13 | . . 24 Wheel 13 | . 27 1 Device 12 | . 18 8 Processor 8 | . 6 11 Energy Gun 7 | . 7 7 Launcher 10 | . 13 7 Special Weapon 7 | . . 12 Naked Turns . | . . . Heaviest Build 12 | 7 12 11 Greatest Support 20 | 20 20 20 Greatest Overweight (x) 1 | . 1 1 Average Overweight (x) . | . . . Largest Inventory Capacity 5 | 5 5 5 Average Capacity 5 | 5 5 5 Most Carried 5 | 5 5 5 Average Carried 4 | 2 4 4 Final Capacity 5 | 5 5 5 Final Carried 5 | 5 5 3 Class Distribution -------------------- 100% | Mutant Dominant Class ---------------- Mutant | -10/Materials Mutant | -10/Mines Resources | -11 -10 -10 ----------- Run | Yrd Mat Min Matter Collected 517 | 250 162 105 Remotely . | . . . Salvage Created 315 | 35 181 99 Parts 28 | 3 21 4 Haulers Intercepted . | . . . Recyclers Shooed . | . . . Parts Field Recycled . | . . . Retrieved Matter . | . . . Parts Self-Destructed . | . . . Prevented . | . . . Kills | -11 -10 -10 ------- Run | Yrd Mat Min Combat Hostiles Destroyed 17 | 1 7 9 Guns 3 | 1 . 2 AOE 14 | . 7 7 Classes Destroyed 6 | 1 4 1 Worker 3 | . 3 . Builder 3 | . 3 . Watcher 1 | . 1 . Swarmer 5 | . 3 2 Grunt 7 | 1 4 2 Assembled 5 | . . 5 Best Kill Streak 5 | 1 4 5 Combat Bots Only 5 | 1 3 5 Max Kills in Single Turn 3 | 1 3 3 Gunslinging . | . . . Exploded 3 | . 3 3 Melee . | . . . Uniques/NPCs Destroyed . | . . . Combat | -11 -10 -10 -------- Run | Yrd Mat Min Hostile Shots Fired 61 | 3 7 51 Missed 12 | 1 1 10 Damage Taken 877 | 22 110 745 Core 250 | . 35 215 Absorbed by Shields . | . . . Core Remaining (%) 100 | 100 . . Volleys Fired 44 | 3 18 23 Largest 2 | 2 2 2 Hottest 200 | 90 70 200 Shots Fired 65 | 6 30 29 Gun 38 | 6 13 19 Cannon . | . . . Launcher 24 | . 17 7 Special 3 | . . 3 Kinetic . | . . . Thermal 25 | 3 . 22 Explosive 24 | . 17 7 Electromagnetic 16 | 3 13 . Robot Hit Streak 10 | 3 10 6 Robot Miss Streak 1 | 1 1 1 Penetration Max . | . . . Secondary Targets . | . . . Shots Hit Robots 36 | 5 14 17 Core Hits 40 | 2 21 17 Critical Kills . | . . . Critical Parts Destroyed . | . . . Critical Strikes 1 | . . 1 Burn 1 | . . 1 Melee Attacks . | . . . Impact . | . . . Slashing . | . . . Piercing . | . . . Sneak Attacks . | . . . Combat Hostiles . | . . . Follow-up Attacks . | . . . Damage Inflicted 1583 | 63 857 663 Guns 316 | 63 85 168 Cannons . | . . . Explosions 1252 | . 772 480 Melee . | . . . Ramming 15 | . . 15 Kinetic . | . . . Thermal 206 | 38 . 168 Explosive 1252 | . 772 480 Electromagnetic 110 | 25 85 . Impact . | . . . Slashing . | . . . Piercing . | . . . Highest Corruption 10 | . . 10 Average Corruption 6 | . . 6 Corruption Purged . | . . . Corruption Blocked . | . . . Effects 5 | . . 5 Message Errors 2 | . . 2 Energy Discharges 1 | . . 1 Data Loss (major) 1 | . . 1 Misfires 1 | . . 1 Overload Shots . | . . . Overflow Damage 59 | . 19 40 Projectiles . | . . . Explosions 59 | . 19 40 Melee . | . . . Knockbacks . | . . . Impact . | . . . Kinetic . | . . . Secondary . | . . . Self-Inflicted Damage 131 | . 41 90 Shots 6 | . 2 4 Rammed . | . . . Targets Rammed 1 | . . 1 Kicked 1 | . . 1 Crushed . | . . . Highest Temperature 112 | 66 2 112 Average Temperature 48 | 29 2 54 Received Heat Transfer 264 | 12 36 216 Siege Activations . | . . . Robots Corrupted . | . . . Combat Hostiles . | . . . Parts Fried . | . . . Impact Corruptions . | . . . Robots Melted . | . . . Combat Hostiles . | . . . Parts Melted 1 | . . 1 Heat Transferred 607 | 111 . 496 Parts Sabotaged . | . . . Parts Stolen . | . . . Parts Stripped . | . . . Power Chain Reactions . | . . . Alert | -11 -10 -10 ------- Run | Yrd Mat Min Peak Influence 374 | 20 374 225 Initial 145 | . 13 145 Average 167 | 4 180 202 Maximum Alert Level 1 | . 1 1 Low Security (%) 64 | 100 61 56 Level 1 35 | . 38 43 Level 2 . | . . . Level 3 . | . . . Level 4 . | . . . Level 5 . | . . . High Security . | . . . Max Security . | . . . Squads Dispatched 2 | . 2 . Investigation . | . . . Extermination . | . . . Reinforcement 2 | . 2 . Assault . | . . . Garrison . | . . . Intercept . | . . . Searches Triggered . | . . . Construction Impeded . | . . . Haulers Reinforced . | . . . Active Scanning Responses . | . . . Cargo Convoy Interrupts . | . . . Stealth | -11 -10 -10 --------- Run | Yrd Mat Min Distress Signals 1 | . . 1 Communications Jammed . | . . . Distress Signals . | . . . Times Spotted 26 | 1 12 13 Peak Tracking Total 5 | 1 3 5 Tactical Retreats . | . . . Traps | -11 -10 -10 ------- Run | Yrd Mat Min Traps Triggered . | . . . Indirectly . | . . . Trap Hack Attempts . | . . . Triggered . | . . . Disarmed . | . . . Reprogrammed . | . . . Reused . | . . . Traps Extracted . | . . . Installed . | . . . Triggered . | . . . Machines | -11 -10 -10 ---------- Run | Yrd Mat Min Machines Disabled . | . . . Max in Single Turn . | . . . Machines Repaired . | . . . Machines Dismantled . | . . . Machines Sabotaged . | . . . Overloaded Fab Kills . | . . . Hacking | -11 -10 -10 --------- Run | Yrd Mat Min Machines Accessed . | . . . Terminals . | . . . Fabricators . | . . . Repair Stations . | . . . Recycling Units . | . . . Scanalyzers . | . . . Garrison Access . | . . . Total Hacks . | . . . Successful . | . . . Failed . | . . . Catastrophic . | . . . Database Lockouts . | . . . Manual . | . . . Terminals . | . . . Fabricators . | . . . Repair Stations . | . . . Recycling Units . | . . . Scanalyzers . | . . . Garrison Access . | . . . Terminal Hacks . | . . . Fabricator Hacks . | . . . Repair Station Hacks . | . . . Recycling Unit Hacks . | . . . Scanalyzer . | . . . Garrison Access Hacks . | . . . Unauthorized Hacks . | . . . Terminals . | . . . Fabricators . | . . . Repair Stations . | . . . Recycling Units . | . . . Scanalyzers . | . . . Garrison Access . | . . . Data Cores Recovered . | . . . Used . | . . . Hacking Detections . | . . . Full Trace Events . | . . . Feedback Events . | . . . Feedback Blocked . | . . . Robot Schematics Acquired . | . . . Robots Built . | . . . Authchips . | . . . Time . | . . . Total Robot Build Rating . | . . . Part Schematics Acquired . | . . . Parts Built . | . . . Authchips . | . . . Time . | . . . Total Part Build Rating . | . . . Parts Repaired . | . . . Time . | . . . Parts Recycled . | . . . Recycled Matter . | . . . Retrieved Matter . | . . . Retrieved Components . | . . . Parts Scanalyzed . | . . . Part Schematics Acquired . | . . . Parts Damaged . | . . . Bothacking | -11 -10 -10 ------------ Run | Yrd Mat Min Used RIF Installer . | . . . Robots Hacked . | . . . Non-combat . | . . . Combat . | . . . Robot Hacks Applied . | . . . Relay Couplers Released . | . . . Fabnet Peak Effective % . | . . . Robots Rewired . | . . . Allies Hacked . | . . . Hacks Repelled . | . . . Allies | -11 -10 -10 -------- Run | Yrd Mat Min Total Allies . | . . . Largest Group . | . . . Highest-Rated Group . | . . . Highest-Rated Ally . | . . . Total Orders . | . . . Ally Attacks . | . . . Total Damage . | . . . Kills . | . . . Allies Corrupted . | . . . Allies Melted . | . . . Intel | -11 -10 -10 ------- Run | Yrd Mat Min Robot Analysis Total . | . . . Derelict Logs Recovered . | . . . Drone Launches . | . . . Drone Recoveries . | . . . Exploration | -11 -10 -10 ------------- Run | Yrd Mat Min Turns Passed 812 | 110 326 376 Spaces Moved 650 | 86 320 244 Core 35 | 28 . 7 Treads . | . . . Legs 215 | . 6 209 Wheels 400 | 58 314 28 Hover . | . . . Flight . | . . . Fastest Speed 50 | 50 80 50 Average Speed 92 | 70 80 114 Slowest Speed 120 | 80 120 120 Overloaded Moves . | . . . Propulsion Burnouts . | . . . Robots Hopped . | . . . Cave-ins Triggered . | . . . Exploration Rate (%) 33 | 9 39 53 Regions Visited 2 Branch Regions 1 Pre-discovered Areas . | . . . Known Exits Taken . | . . . Unknown Exits Taken 2 | 1 1 . Scrap Searched . | . . . Spaces Dug 3 | . . 3 Terrain Destroyed 181 | . 125 56 Melee . | . . . Projectile 3 | . . 3 AOE 178 | . 125 53 Terrain Rammed 1 | . . 1 Walls Destroyed . | . . . Machines Disabled . | . . . Actions | -11 -10 -10 --------- Run | Yrd Mat Min Total 788 | 129 355 304 Wait 51 | 26 2 23 Move 648 | 85 319 244 Hop . | . . . Pick Up 14 | 10 2 2 Fast Attach 5 | . 5 . Attach 10 | 5 1 4 Detach . | . . . Swap 10 | . 4 6 Drop 4 | . 4 . Fire 44 | 3 18 23 Melee . | . . . Ram 1 | . . 1 Kick 1 | . . 1 Crush . | . . . Escape Stasis . | . . . Rewire . | . . . Trap . | . . . Miscellaneous . | . . . Route ------- -11/Scrapyard -10/Materials -10/Mines History --------- Turn | Location | Event 5 | -11/Scrapyard | Met Revision 17 78 | -11/Scrapyard | Discovered new exit (range 8) 111 | -11/Scrapyard | Entered Materials 313 | -10/Materials | Build established: Mutant 403 | -10/Materials | Discovered new exit (range 7) 437 | -10/Materials | Entered Mines 460 | -10/Mines | Met a Derelict bent on vengeance 608 | -10/Mines | Assembled infested the area 746 | -10/Mines | System corruption reached 10% 755 | -10/Mines | Core integrity fell below 50% 770 | -10/Mines | Core integrity fell below 20% 813 | -10/Mines | Destroyed by D-53 Grenadier with Mini Grenade Launcher Last Messages --------------- 00771_ Med. Laser destroyed. 00772_ G-47 Trooper heat spikes uncontrollably. 00772_ The unstable cave ceiling collapses. 00772_ G-47 Trooper overheating. 00773_ G-47 Trooper destroyed. 00775_ R-06 Scavenger collects Imp. Heat Sink. 00777_ Wheel destroyed. 00780_ =W8UM1ZZDPDEFJU4KPS>AO%DB #XN> 00783_ Aluminum Leg destroyed. 00787_ R-06 Scavenger collects Lgt. Nuclear Core. 00789_ Acquired Lgt. Ion Engine. 00791_ Ion Engine melted. 00791_ G-34 Mercenary destroyed. 00791_ R-06 Scavenger collects Sml. Laser. 00792_ Acquired 41 matter. 00793_ Acquired 39 matter. 00795_ R-06 Scavenger collects Aluminum Leg. 00797_ Acquired Wheel. 00813_ Grenade Launcher destroyed. [Achievement: First Step to Greatness] Map ----- +----------------------------------------------------+ | ???????????????????# #####??????????????????????? | | ???????????????????# #??????????????????????????? | | ??????????????????## #??????????????????????????? | | ?????????????????## #??????????????????????????? | | ????????????????## #??????????????????????????? | | ??????????????### #??????????????????????????? | | ?????????????## #??????????????????????????? | | ????????????## ##?????????? ??????????????? | | ????????????# ######## #??????????????? | | ???????????## #??????????????? | | ???????##### #?????????????? | | ??????## ####### #????????????? | | ??????# ##?????????? #?????????????? | | ?????## ## ##?????????#???????????????? | | ????## ### #?????? ? #???????????????? | | ???## ## ##???? ## #???????????????? | | ???# ##??? # ###?????????????? | | ???# #??? ##????????????? | | ???# ##? # ??????????? | | ? d% ???????????? | | ## % # d ?????????????? | | ??????## # ???????????????? | | ???????## ###### ?????????????????? | | ????????###?????# #??????????????????? | | ?????????????????# # #???????????????????? | | ?????????????????# % @ #????????????????????? | | ?????????????????# ### ###????????????????????? | | ?????????????????## ##?# #??????????????????????? | | ??####????????????# ##??# #??????????????????????? | | ?## ######???????# #???# #??????????????????????? | | ## ## ####????# #???# #??????????????????????? | | # ###### #???# #??????????????????????? | | ## ##### #??????????????????????? | | #??????????????????????? | | ## #######??????????????????????? | | # ### ## #### #????????????????????????????? | | ####?# ###??# #????????????????????????????? | | ?????# #????# ###??????????????????????????? | | #???### ##???# # #??????????????????????????? | | #???# #???# #???????????????????????????? | | #??# #???#####???????????????????????????? | | #?# """" #??????????????????????????????????? | | ??# """" #?????????????????????????????????? | | ??## """" #?????????????????????????????????? | | ???## ##?????????????????????????????????? | | ????##### ####??????????????????????????????????? | | ?????????###?????????????????????????????????????? | | ?????????????????????????????????????????????????? | | | | | +----------------------------------------------------+ Best States ------------- Heat Dissipation 35 Energy Generation 10 Energy Capacity 250 Matter Stores 300 Matter Capacity 300 Sight Range 18 Robot Scan Range 14 Terrain Scan Range 14 Terrain Scan Density 10 Evasion (%) 55 Item Schematics ----------------- None Robot Schematics ------------------ None Fabricated ------------ Nothing Alien Tech Used ----------------- None Achievements -------------- Crack Shot First Step to Greatness Maybe Next Time I'll Detach My Launcher System Compromised Uninvited Guest Challenges ------------ None Game ------ Seed DeuteriumMicrowarpAirjet Manual? 0 Play Time 00:39:58 Cumulative 0.6 hours Start 2024.07.16 @ 02:35:40 End 2024.07.17 @ 02:05:54 Sessions 11 Manual Loads 0 Difficulty Rogue Special Mode None Game No. 1 Rogue 1 Adventurer 0 Explorer 0 Win Type - Total 0 Types 0/0/0/0/0/0/0/0/0 Lore% 0 Gallery% 1 Achievement% 1 Wizard Run 0 Options --------- Layout 0 ASCII 0 Keyboard 0 Movement Mouse Keybinds 0 Fullscreen 2 Font 24/Smallcaps Map View 76x50 Zoom Use 13% Tactical HUD 1 Map Filters NONE Filters NONE Steam 1 RUN: a864333b-8618-4ca5-8d10-17ae752bf5f0